Cogmind - Beta 9.4 @@@ ROGUE MODE // 2020.01.22 @ 10:00:33 Player: Pimski Result: Destroyed by G-34 Mercenary with Small Laser Performance ------------- Evolutions (0) 0 Regions Visited (4) 800 Robots Destroyed (11) 55 Value Destroyed (271) 271 Prototype IDs (26) 520 Alien Tech Used (0) 0 Bonus (300) 300 TOTAL SCORE: 1946 Bonus ------- Aligned with FarCom 300 Cogmind --------- Core Integrity 0/250 Matter 300/300 Energy 100/100 System Corruption 0% Temperature Cool (6) Movement Core (150) Ox2 Location -9/Mines Parts ------- > --- POWER (1) -------- (None) > --- PROPULSION (2) --- (None) > --- UTILITY (2) ------ Medium Storage Unit Targeting Computer > --- WEAPON (2) ------- (None) > --- INVENTORY (8) ---- Flying Fortress v7 Modified TNC Cloak of Protection Hacking Suite Rocket Launcher Peak State ------------ > --- POWER ------------ (None) > --- PROPULSION ------- (None) > --- UTILITY ---------- Medium Storage Unit Targeting Computer > --- WEAPON ----------- Assault Rifle Light Assault Rifle > --- INVENTORY -------- Flying Fortress v7 Modified TNC Cloak of Protection Hacking Suite Rocket Launcher [Rating: 9] Favorites ----------- Power Light Ion Engine Engine Light Ion Engine Propulsion Light Treads Treads Light Treads Leg Aluminum Leg Wheel Compact Wheel Utility Targeting Computer Device Tractor Beam Storage Small Storage Unit Processor Targeting Computer Weapon Assault Rifle Ballistic Gun Assault Rifle Build | -11 -10 -10 -10 -9 ------- Run | Scr Mat Min Exi Min Slots Evolved . | . . . . . Power . | . . . . . Propulsion . | . . . . . Utility . | . . . . . Weapon . | . . . . . Parts Attached 12 | 1 7 2 2 . Power 4 | . 4 . . . Engine 4 | . 4 . . . Core . | . . . . . Reactor . | . . . . . Propulsion 4 | . 2 2 . . Treads 3 | . 2 1 . . Leg . | . . . . . Wheel 1 | . . 1 . . Hover . | . . . . . Flight . | . . . . . Utility 3 | 1 1 . 1 . Device 1 | 1 . . . . Storage 1 | . . . 1 . Processor 1 | . 1 . . . Hackware . | . . . . . Protection . | . . . . . Artifact . | . . . . . Weapon 1 | . . . 1 . Energy Gun . | . . . . . Energy Cannon . | . . . . . Ballistic Gun 1 | . . . 1 . Ballistic Cannon . | . . . . . Launcher . | . . . . . Special Weapon . | . . . . . Impact Weapon . | . . . . . Slashing Weapon . | . . . . . Piercing Weapon . | . . . . . Special Melee Weapon . | . . . . . Unidentified Prototypes . | . . . . . Parts Lost 7 | . . 5 . 2 Power 1 | . . 1 . . Propulsion 3 | . . 3 . . Utility . | . . . . . Weapon 3 | . . 1 . 2 Highest Loss Streak 3 | . . 3 . 2 Average Slot Usage (%) 79 | . 100 94 50 55 Engine 8 | . 14 12 . . Treads 11 | . 24 16 . . Leg 1 | . 3 . . . Wheel 3 | . . 10 . . Storage 12 | . 14 13 10 14 Processor 13 | . 12 14 14 14 Ballistic Gun 26 | . 28 26 24 26 Naked Turns . | . . . . . Heaviest Build 14 | 14 14 11 11 11 Greatest Support 40 | 20 40 40 3 3 Greatest Overweight (x) 3 | . . . 3 3 Average Overweight (x) . | . . . 1 2 Largest Inventory Capacity 8 | 6 6 6 8 8 Average Capacity 6 | 6 6 5 7 8 Most Carried 8 | 6 6 6 8 8 Average Carried 5 | 6 5 5 5 8 Final Capacity 8 | 6 6 4 8 8 Final Carried 8 | 6 6 4 8 8 Class Distribution -------------------- 100% | Mutant Dominant Class ---------------- Mutant | -10/Materials Mutant | -10/Mines Mutant | -10/Exiles Mutant | -9/Mines Resources | -11 -10 -10 -10 -9 ----------- Run | Scr Mat Min Exi Min Matter Collected 554 | 228 269 36 20 1 Remotely 10 | 10 . . . . Salvage Created 520 | 94 365 13 . 48 Parts 22 | 3 13 4 . 2 Haulers Intercepted . | . . . . . Recyclers Shooed 4 | . 3 1 . . Parts Field Recycled . | . . . . . Retrieved Matter . | . . . . . Parts Self-Destructed . | . . . . . Prevented . | . . . . . Kills | -11 -10 -10 -10 -9 ------- Run | Scr Mat Min Exi Min Combat Hostiles Destroyed 6 | . 5 . . 1 Guns 6 | . 5 . . 1 Classes Destroyed 4 | 1 2 1 . . Tunneler 1 | . . 1 . . Recycler 3 | 1 2 . . . Operator 1 | . 1 . . . Grunt 6 | . 5 . . 1 Best Kill Streak 3 | 1 3 1 . 1 Combat Bots Only 2 | . 2 . . 1 Max Kills in Single Turn 1 | 1 1 1 . 1 Gunslinging . | . . . . . Exploded . | . . . . . Melee . | . . . . . Uniques/NPCs Destroyed . | . . . . . Combat | -11 -10 -10 -10 -9 -------- Run | Scr Mat Min Exi Min Damage Taken 1011 | . 381 393 . 237 Core 258 | . 75 118 . 65 Absorbed by Shields . | . . . . . Core Remaining (%) 100 | 100 . . . . Volleys Fired 52 | 3 37 1 . 11 Largest 2 | 2 2 2 . 1 Hottest 40 | 40 40 40 . 20 Shots Fired 93 | 6 74 2 . 11 Gun 93 | 6 74 2 . 11 Cannon . | . . . . . Launcher . | . . . . . Special . | . . . . . Kinetic 93 | 6 74 2 . 11 Thermal . | . . . . . Explosive . | . . . . . Electromagnetic . | . . . . . Robot Hit Streak 17 | 6 17 5 . 5 Robot Miss Streak 2 | . 2 . . 1 Penetration Max . | . . . . . Secondary Targets . | . . . . . Shots Hit Robots 73 | 6 56 2 . 9 Core Hits 28 | 2 18 3 . 5 Critical Hits 1 | . 1 . . . Critical Kills . | . . . . . Critical Parts Destroyed 1 | . 1 . . . Melee Attacks . | . . . . . Impact . | . . . . . Slashing . | . . . . . Piercing . | . . . . . Sneak Attacks . | . . . . . Combat Hostiles . | . . . . . Follow-up Attacks . | . . . . . Damage Inflicted 851 | 75 665 38 . 73 Guns 836 | 75 665 23 . 73 Cannons . | . . . . . Explosions . | . . . . . Melee . | . . . . . Ramming 15 | . . 15 . . Kinetic 836 | 75 665 23 . 73 Thermal . | . . . . . Explosive . | . . . . . Electromagnetic . | . . . . . Impact . | . . . . . Slashing . | . . . . . Piercing . | . . . . . Highest Corruption . | . . . . . Average Corruption . | . . . . . Corruption Purged . | . . . . . Overload Shots . | . . . . . Overflow Damage . | . . . . . Projectiles . | . . . . . Explosions . | . . . . . Melee . | . . . . . Knockbacks . | . . . . . Impact . | . . . . . Kinetic . | . . . . . Secondary . | . . . . . Self-Inflicted Damage 2 | . . 2 . . Shots . | . . . . . Rammed 15 | . 1 13 . 1 Targets Rammed 15 | . 1 13 . 1 Kicked . | . . . . . Crushed . | . . . . . Highest Temperature 2 | . 2 . . 1 Average Temperature 1 | . 2 . . 1 Received Heat Transfer 264 | . 222 . . 42 Siege Activations . | . . . . . Robots Corrupted . | . . . . . Combat Hostiles . | . . . . . Parts Fried . | . . . . . Impact Corruptions . | . . . . . Robots Melted . | . . . . . Combat Hostiles . | . . . . . Parts Melted . | . . . . . Heat Transferred . | . . . . . Parts Sabotaged . | . . . . . Parts Stolen . | . . . . . Parts Stripped . | . . . . . Power Chain Reactions . | . . . . . Missiles Intercepted . | . . . . . Alert | -11 -10 -10 -10 -9 ------- Run | Scr Mat Min Exi Min Peak Influence 184 | 5 184 10 . 20 Average Influence 22 | 4 61 4 . 1 Maximum Alert Level . | . . . . . Low Security (%) 100 | 100 100 100 . 100 Level 1 . | . . . . . Level 2 . | . . . . . Level 3 . | . . . . . Level 4 . | . . . . . Level 5 . | . . . . . High Security . | . . . . . Max Security . | . . . . . Squads Dispatched 1 | . 1 . . . Investigation . | . . . . . Extermination . | . . . . . Reinforcement 1 | . 1 . . . Assault . | . . . . . Garrison . | . . . . . Intercept . | . . . . . Construction Impeded . | . . . . . Haulers Reinforced . | . . . . . Stealth | -11 -10 -10 -10 -9 --------- Run | Scr Mat Min Exi Min Distress Signals . | . . . . . Communications Jammed . | . . . . . Distress Signals . | . . . . . Times Spotted 22 | . 14 5 . 3 Peak Tracking Total 4 | . 4 3 . 3 Tactical Retreats 3 | . 2 1 . . Traps | -11 -10 -10 -10 -9 ------- Run | Scr Mat Min Exi Min Traps Triggered 2 | . 2 . . . Indirectly . | . . . . . Trap Hack Attempts . | . . . . . Triggered . | . . . . . Disarmed . | . . . . . Reprogrammed . | . . . . . Reused . | . . . . . Traps Extracted . | . . . . . Installed . | . . . . . Triggered . | . . . . . Machines | -11 -10 -10 -10 -9 ---------- Run | Scr Mat Min Exi Min Machines Disabled . | . . . . . Max in Single Turn . | . . . . . Machines Sabotaged . | . . . . . Garrisons Compromised . | . . . . . Overloaded Fab Kills . | . . . . . Fab Network Shutdowns . | . . . . . Hacking | -11 -10 -10 -10 -9 --------- Run | Scr Mat Min Exi Min Machines Accessed 6 | . 4 . 2 . Terminals 3 | . 3 . . . Fabricators . | . . . . . Repair Stations . | . . . . . Recycling Units 1 | . 1 . . . Scanalyzers . | . . . . . Garrison Access . | . . . . . Total Hacks 11 | . 9 . 2 . Successful 7 | . 5 . 2 . Failed 4 | . 4 . . . Catastrophic . | . . . . . Database Lockouts . | . . . . . Manual 4 | . 3 . 1 . Terminals 7 | . 7 . . . Fabricators . | . . . . . Repair Stations . | . . . . . Recycling Units 2 | . 2 . . . Scanalyzers . | . . . . . Garrison Access . | . . . . . Terminal Hacks 6 | . 4 . 2 . Record 1 | . . . 1 . Prototype ID Bank 3 | . 3 . . . Branch Access Points 1 | . 1 . . . EX-Prototype ID Bank 1 | . . . 1 . Fabricator Hacks . | . . . . . Repair Station Hacks . | . . . . . Recycling Unit Hacks 1 | . 1 . . . Retrieve Components 1 | . 1 . . . Scanalyzer . | . . . . . Garrison Access Hacks . | . . . . . Unauthorized Hacks 1 | . 1 . . . Terminals . | . . . . . Fabricators . | . . . . . Repair Stations . | . . . . . Recycling Units . | . . . . . Scanalyzers . | . . . . . Garrison Access . | . . . . . Data Cores Recovered . | . . . . . Used . | . . . . . Hacking Detections 4 | . 4 . . . Full Trace Events . | . . . . . Feedback Events . | . . . . . Feedback Blocked . | . . . . . Robot Schematics Acquired . | . . . . . Robots Built . | . . . . . Matter . | . . . . . Time . | . . . . . Total Robot Build Rating . | . . . . . Part Schematics Acquired . | . . . . . Parts Built . | . . . . . Matter . | . . . . . Time . | . . . . . Total Part Build Rating . | . . . . . Parts Repaired . | . . . . . Time . | . . . . . Parts Recycled . | . . . . . Recycled Matter . | . . . . . Retrieved Matter . | . . . . . Retrieved Components 2 | . 2 . . . Parts Scanalyzed . | . . . . . Part Schematics Acquired . | . . . . . Parts Damaged . | . . . . . Bothacking | -11 -10 -10 -10 -9 ------------ Run | Scr Mat Min Exi Min Used RIF Installer . | . . . . . Robots Hacked . | . . . . . Non-combat . | . . . . . Combat . | . . . . . Robot Hacks Applied . | . . . . . Relay Couplers Released . | . . . . . Robots Rewired . | . . . . . Allies Hacked . | . . . . . Hacks Repelled . | . . . . . Allies | -11 -10 -10 -10 -9 -------- Run | Scr Mat Min Exi Min Total Allies . | . . . . . Largest Group . | . . . . . Highest-Rated Group . | . . . . . Highest-Rated Ally . | . . . . . Total Orders . | . . . . . Ally Attacks . | . . . . . Total Damage . | . . . . . Kills . | . . . . . Allies Corrupted . | . . . . . Allies Melted . | . . . . . Intel | -11 -10 -10 -10 -9 ------- Run | Scr Mat Min Exi Min Robot Analysis Total . | . . . . . Derelict Logs Recovered 1 | . . 1 . . Drone Launches . | . . . . . Drone Recoveries . | . . . . . Exploration | -11 -10 -10 -10 -9 ------------- Run | Scr Mat Min Exi Min Turns Passed 1986 | 34 503 693 483 273 Spaces Moved 1207 | 20 226 533 408 20 Core 486 | . . 58 408 20 Treads 425 | . 177 248 . . Legs 69 | 20 49 . . . Wheels 227 | . . 227 . . Hover . | . . . . . Flight . | . . . . . Fastest Speed 50 | 120 120 50 50 150 Average Speed 127 | 120 151 122 117 190 Slowest Speed 200 | 120 160 160 200 200 Overloaded Moves . | . . . . . Propulsion Burnouts . | . . . . . Robots Hopped . | . . . . . Cave-ins Triggered . | . . . . . Exploration Rate (%) 35 | 3 39 61 70 6 Regions Visited 4 Branch Regions 3 Pre-discovered Areas 2 | . . 1 1 . Known Exits Taken 1 | . 1 . . . Unknown Exits Taken 3 | 1 . 1 1 . Scrap Searched 2 | . . 1 . 1 Spaces Dug . | . . . . . Terrain Destroyed . | . . . . . Melee . | . . . . . Projectile . | . . . . . AOE . | . . . . . Actions | -11 -10 -10 -10 -9 --------- Run | Scr Mat Min Exi Min Total 1560 | 23 314 564 413 246 Wait 260 | . 34 12 . 214 Move 1203 | 19 225 532 407 20 Hop . | . . . . . Pick Up 8 | . 4 1 3 . Fast Attach 4 | 1 2 . 1 . Attach 6 | . 4 1 1 . Detach . | . . . . . Swap 2 | . 1 1 . . Drop 10 | . 6 3 1 . Fire 52 | 3 37 1 . 11 Melee . | . . . . . Ram 2 | . . 1 . 1 Kick . | . . . . . Crush 13 | . 1 12 . . Escape Stasis . | . . . . . Rewire . | . . . . . Trap . | . . . . . Miscellaneous . | . . . . . Route ------- -11/Scrapyard -10/Materials -10/Mines (discovered 2 exits: [*Mat] / *Exi) -10/Exiles -9/Mines (discovered 1 exit: [*Mat]) History --------- Turn | Location | Event 10 | -11/Scrapyard | Discovered new exit (range 3) 35 | -11/Scrapyard | Entered Materials 91 | -10/Materials | Identified exit to Mines 316 | -10/Materials | Build established: Mutant 538 | -10/Materials | Entered Mines 621 | -10/Mines | Assembled infested the area 649 | -10/Mines | Met 8R-AWN 741 | -10/Mines | Learned Materials emergency access door positions 789 | -10/Mines | Discovered new exit (range 5) 853 | -10/Mines | Discovered new exit (range 9) 928 | -10/Mines | Received a Rocket Launcher from a helpful Derelict 1078 | -10/Mines | Learned location of Storage (-7) 1188 | -10/Mines | Core integrity fell below 50% 1195 | -10/Mines | Lost 3 parts (1p1n1w) 1231 | -10/Mines | Entered Exiles 1244 | -10/Exiles | Welcomed by 8R-AWN 1252 | -10/Exiles | Met EX-HEX 1271 | -10/Exiles | Met EX-DEC 1279 | -10/Exiles | Learned location of Zion (-7) 1289 | -10/Exiles | Met EX-BIN 1295 | -10/Exiles | Aligned with FarCom system 1295 | -10/Exiles | Given EX-Vault access code 1307 | -10/Exiles | Opened EX-Vault 1319 | -10/Exiles | Warned to stay clear of 0b10 Research branches 1492 | -10/Exiles | Found Flying Fortress v7 1501 | -10/Exiles | Found Modified TNC 1511 | -10/Exiles | Found Cloak of Protection 1698 | -10/Exiles | Discovered new exit (range 10) 1714 | -10/Exiles | Stole three prototypes: Flying Fortress v7, Modified TNC, Cloak of Protection 1714 | -10/Exiles | Entered Mines 1732 | -9/Mines | Discovered new exit (range 15) 1970 | -9/Mines | Core integrity fell below 20% 1987 | -9/Mines | Destroyed by G-34 Mercenary with Small Laser Last Messages --------------- 1234 which I did last time as a little joke and some thief managed to sneak in here and steal a few of HEX's prototypes. 01492_ Acquired Flying Fortress v7. 01501_ Acquired Modified TNC. 01510_ Dropped Lgt. Nuclear Core. 01511_ Acquired Cloak of Protection. 01698_ EXIT=FOUND LOCATION=UNKNOWN GOAL=ESCAPE 01714_ Receiving FarCom transmissions... 01732_ EXIT=FOUND 01953_ Assault Rifle destroyed. 01969_ G-34 Mercenary destroyed. 01981_ Lgt. Assault Rifle destroyed. 01982_ Slammed into L-31 Rogue. 01983_ Acquired 1 matter. 01983_ Searching scrap... 01983_ Found 49 Matter. 01983_ Found Med. Storage Unit. 01983_ Found Hvy. Hammer. Map ----- +----------------------------------------------------+ | ????????????????????????????????????? | | ????????????????????????????????????? | | ????????????????????????????????????? | | ????????????????????????????????????? | | ????????????????????????????????????? | | ????????###?????????????????????????? | | ???????## ##???????????????????????? | | ???????# #???????????????????????? | | ???????# #???????????????????????? | | ????????# ##??????????????????????? | | ?????????# #??????????????????????? | | ??????????# #??????????????????????? | | ?????????## ##?????????????????????? | | ??????#### #?????????????????????? | | ?????## #?????????????????????? | | ?????# ##?????????????????????? | | ?????# ## #??????????????????????? | | ?????## ### #??????????????????????? | | ??????####?# #??????????????????????? | | ???????????# #??????????????????????? | | ???????????# ######?????????????????? | | ???????????#=* #?????????????????? | | ???????????#%#### #?????????????????? | | ???????????#l#??????????????????????? | | ???????????#!#??????????????????????? | | ???????????#@#??????????????????????? | | ???????????# #??????????????????????? | | ???????????# #??????????????????????? | | ??????????? ??????????????????????? | | ??????????? ??????????????????????? | | ??????????? ??????????????????????? | | ??????????? g ??????????????????????? | | ?????????? ?????????????????????? | | ?????????? ?????????????????????? | | ?????????? ?????????????????????? | | ??????????#####?????????????????????? | | ????????????????????????????????????? | | ????????????????????????????????????? | | ????????????????????????????????????? | | ????????????????????????????????????? | | ????????????????????????????????????? | | ????????????????????????????????????? | | ????????????????????????????????????? | | ????????????????????????????????????? | | ????????????????????????????????????? | | ????????????????????????????????????? | | ????????????????????????????????????? | | ????????????????????????????????????? | | ????????????????????????????????????? | | | +----------------------------------------------------+ Best States ------------- Heat Dissipation 25 Energy Generation 10 Energy Capacity 250 Matter Stores 300 Matter Capacity 300 Sight Range 16 Terrain Scan Density 10 Evasion (%) 50 Targeting Accuracy 5 Recoil Reduction 2 Item Schematics ----------------- None Robot Schematics ------------------ None Fabricated ------------ Nothing Alien Tech Used ----------------- None Achievements -------------- None Challenges ------------ None Game ------ Seed TerrainImprinterNegator Manual? 0 Play Time 00:13:35 Cumulative 629.2 hours Start 2020.01.22 @ 09:47:24 End 2020.01.22 @ 10:00:33 Sessions 1 Manual Loads 0 Difficulty Rogue Special Mode None Game No. 403 Rogue 403 Adventurer 0 Explorer 0 Win Type - Total 102 Types 68/6/8/10/5/1/4 Lore% 97 Gallery% 95 Achievement% 80 Wizard Run 0 Options --------- ASCII 0 Keyboard 0 Movement Numpad Keybinds 0 Fullscreen 2 Font 18/SmallcapsGlow Map View 76x50 Tactical HUD 1 Map Filters NONE Filters NONE Steam 1 RUN: fb5b2c85-8e54-4ca9-b8da-6ffb527571a0